bitfinex/quotes_ETHUSD_20250323
["timestamp","ask_amount","ask_price","bid_price","bid_amount"]
[1742699347730,4.99877,2000.5,2000.2,2.53815198]
[1742699348161,4.99877,2000.5,2000.1,7.53765198]
[1742699350070,4.99877,2000.5,2000.2,26.432]
[1742699350947,4.99877,2000.5,2000.2,28.97015198]
[1742699351444,4.99862,2000.6,2000.2,29.07015198]
[1742699351644,4.99862,2000.6,2000.3,2.53815198]
[1742699351839,4.99875,2000.5,2000.2,29.07015198]
[1742699352670,4.99832,2000.7,2000.3,2.53815198]
[1742699352872,9.99671,2000.7,2000.3,2.53815198]
[1742699353362,4.99854,2000.6,2000.2,34.06953198]
[1742699354368,4.99854,2000.6,2000.3,2.53815198]
[1742699356766,5.7891,2000.8,2000.4,7.63714198]
[1742699357076,10.78725,2000.8,2000.4,7.63714198]
[1742699357264,10.78725,2000.8,2000.4,2.63815198]
[1742699357854,4.99826,2000.7,2000.4,2.63815198]
[1742699358267,4.99851,2000.6,2000.3,2.53815198]
[1742699358471,5.77571,2000.6,2000.2,34.06952198]
[1742699359759,5.77571,2000.6,2000.3,2.53815198]
[1742699359760,4.99851,2000.6,2000.3,2.53815198]
[1742699359960,9.99671,2000.7,2000.3,2.53815198]
[1742699361002,4.99826,2000.7,2000.3,7.53730198]
[1742699361353,9.99669,2000.7,2000.2,34.06952198]
[1742699361587,4.99852,2000.6,2000.2,34.06952198]
[1742699361899,5.77572,2000.6,2000.2,34.06952198]
[1742699362879,4.99878,2000.5,2000.2,26.432]
[1742699363082,4.9991,2000.4,2000.2,26.432]
[1742699363255,5.7763,2000.4,2000.2,26.432]
[1742699363655,4.99925,2000.3,2000.2,26.432]
[1742699366589,9.99832,2000.4,2000.2,26.432]
[1742699367389,4.99925,2000.3,2000.2,26.432]
[1742699368293,4.99925,2000.3,2000.2,26.532]
[1742699368493,0.7581,2000.8,2000.2,29.07015198]
[1742699368692,4.99852,2000.6,2000.3,2.53815198]
[1742699369184,5.7561,2000.8,2000.4,2.53815198]
[1742699369400,5.7561,2000.8,2000.3,7.53726198]
[1742699369792,5.7561,2000.8,2000.4,2.53815198]
[1742699369993,4.99831,2000.7,2000.4,2.53815198]
[1742699371396,4.99831,2000.7,2000.3,7.53726198]
[1742699371690,4.99831,2000.7,2000.3,2.53815198]
[1742699372062,4.99864,2000.6,2000.3,2.53815198]
[1742699373567,4.99831,2000.7,2000.3,2.53815198]
[1742699373568,5.75614,2000.8,2000.4,7.53711198]
[1742699373777,5.75614,2000.8,2000.5,2.53815198]
[1742699374307,4.99794,2000.9,2000.7,2.53815198]
[1742699374641,0.7581,2000.7,2000.2,26.432]
[1742699374811,5.75735,2000.3,2000.2,26.432]
[1742699379899,5.00035,1999.9,1999.6,26.431]
[1742699380982,5.00051,1999.8,1999.6,26.431]
[1742699381521,10.00124,1999.8,1999.6,26.431]
[1742699382998,5.00075,1999.7,1999.6,26.431]
[1742699383682,5.00123,1999.6,1999.2,0.1]
[1742699383878,5.00134,1999.5,1999.3,26.433]
[1742699387979,5.0015,1999.4,1999.3,26.433]
[1742699388184,0.8072,1999.3,1998.9,0.1184386]
[1742699388379,5.0025,1999.0,1998.9,0.1184386]
[1742699389010,5.0023,1999.1,1998.9,0.1184386]
[1742699389217,10.00467,1999.1,1998.9,0.1184386]
[1742699390135,5.0025,1999.0,1998.9,0.1184386]
[1742699392137,5.0025,1999.0,1998.7,4.04182131]
[1742699394623,0.8072,1998.9,1998.6,5.00337]
[1742699394789,5.0025,1999.0,1998.6,9.23372546]
[1742699396918,5.00203,1999.2,1998.8,5.00295]
[1742699397129,5.00242,1999.1,1998.6,5.00335]
[1742699397325,5.00237,1999.1,1998.8,4.23035546]
[1742699397727,5.00255,1999.0,1998.6,4.23035546]
[1742699398325,10.00525,1999.0,1998.6,4.23035546]
[1742699399122,5.00255,1999.0,1998.6,4.23035546]
[1742699399316,10.00516,1999.0,1998.6,4.23035546]
[1742699400013,5.00275,1998.9,1998.6,4.23035546]
[1742699402834,5.00275,1998.9,1998.7,26.445]
[1742699405629,5.00249,1999.1,1998.7,26.445]
[1742699405804,10.00492,1999.1,1998.7,31.44822]
[1742699406204,0.8105,1999.2,1998.7,31.44822]
[1742699406205,5.81263,1999.2,1998.8,9.23318546]
[1742699407428,5.00228,1999.1,1998.8,4.23035546]
[1742699407734,5.00228,1999.1,1998.8,30.67635546]
[1742699410529,5.00141,1999.5,1999.0,4.23035546]
[1742699410718,5.00163,1999.4,1999.0,4.23035546]
[1742699410931,10.00336,1999.4,1999.0,4.23035546]
[1742699411107,5.0018,1999.3,1999.0,4.23035546]
[1742699411812,5.0018,1999.3,1998.9,5.00256]
[1742699412014,5.0018,1999.3,1998.9,9.23291546]
[1742699412334,10.00378,1999.3,1998.9,4.23035546]
[1742699412708,5.0018,1999.3,1998.9,4.23035546]
[1742699412942,5.0018,1999.3,1998.9,9.23305546]
[1742699413142,10.00376,1999.3,1998.9,9.23305546]
[1742699413342,5.0018,1999.3,1998.9,9.23305546]
[1742699413854,0.7885,1999.2,1998.9,5.0027]
[1742699417254,0.7885,1999.2,1999.0,26.445]
[1742699417860,5.59788546,1999.2,1999.0,26.445]
[1742699418146,5.01885546,1999.2,1999.0,26.445]
[1742699418843,5.00225,1999.1,1999.0,26.445]
[1742699420119,5.00216,1999.2,1999.0,26.445]
[1742699420323,5.00179,1999.3,1999.0,26.445]
[1742699420519,1.50223855,1999.3,1999.0,31.4474]
[1742699420844,0.7885,1999.4,1999.0,31.44739]
[1742699421040,5.00128,1999.5,1999.1,5.0022]
[1742699421913,5.0015,1999.4,1999.0,36.44978]
[1742699422344,5.0015,1999.4,1999.0,31.44739]
[1742699427545,10.79073,1999.6,1999.0,35.67764546]
[1742699427747,10.79073,1999.6,1999.2,5.00195]
[1742699427748,5.7895,1999.6,1999.2,5.00195]
[1742699427922,10.01955546,1999.8,1999.3,5.00167]
[1742699428253,5.00087,1999.7,1999.3,5.00167]
[1742699428830,5.00101,1999.6,1999.2,5.0019]
[1742699429746,5.00087,1999.7,1999.3,5.0017]
[1742699429919,10.00174,1999.7,1999.3,5.0017]
[1742699430114,5.00087,1999.7,1999.3,5.0017]
[1742699430330,10.00171,1999.7,1999.3,5.0017]
[1742699430526,10.00171,1999.7,1999.2,5.00175]
[1742699430732,5.00085,1999.7,1999.2,10.00356]
[1742699430932,5.00085,1999.7,1999.3,5.00173]
[1742699432016,7.01210555,1999.8,1999.4,5.00149]
[1742699432221,12.01273555,1999.8,1999.4,5.00149]
[1742699432544,5.789,1999.8,1999.4,31.44449]
[1742699434252,5.00077,1999.7,1999.4,26.443]
[1742699438254,4.23035546,2000.0,1999.4,26.443]
[1742699438255,5.80696,2000.0,1999.4,26.443]
[1742699438454,5.00026,1999.9,1999.5,5.001]
[1742699445771,5.00026,1999.9,1999.5,14.23241546]
[1742699446135,5.00026,1999.9,1999.5,5.001]
[1742699446661,5.80692,2000.0,1999.6,5.00098]
[1742699447662,4.99955,2000.2,1999.6,4.23035546]
[1742699447963,5.82962,2000.2,1999.8,5.00047]
[1742699448470,4.99952,2000.2,1999.8,5.00047]
[1742699448679,5.00019,2000.0,1999.6,5.00094]
[1742699448847,5.83029,2000.0,1999.6,5.00094]
[1742699454180,5.00025,1999.9,1999.5,5.00105]
[1742699454484,0.8044,1999.8,1999.5,5.00105]
[1742699457287,0.8044,1999.8,1999.6,26.436]
[1742699457470,5.80492,1999.8,1999.6,26.436]
[1742699460083,0.8044,1999.8,1999.6,26.436]
[1742699463903,5.80502,1999.8,1999.6,26.436]
[1742699464205,5.00075,1999.7,1999.6,26.436]
[1742699466309,5.8049,1999.8,1999.6,26.436]
[1742699468608,10.80555,1999.8,1999.6,26.436]
[1742699468804,5.8049,1999.8,1999.6,26.436]
[1742699469910,10.80564,1999.8,1999.6,26.436]
[1742699473014,5.8049,1999.8,1999.6,26.436]
[1742699473505,5.00075,1999.7,1999.6,26.436]
[1742699478125,10.80555,1999.8,1999.6,26.436]
[1742699478619,10.80551,1999.8,1999.6,26.436]
[1742699484933,5.00075,1999.7,1999.6,26.436]
[1742699493864,5.8049,1999.8,1999.6,26.436]
[1742699495548,10.00072,1999.9,1999.6,28.97533833]
[1742699495734,10.00066,1999.9,1999.6,28.97533833]
[1742699495938,5.00053,1999.8,1999.6,28.97533833]
[1742699496456,5.00053,1999.8,1999.6,26.436]
[1742699500036,5.8263,2000.0,1999.6,28.97533833]
[1742699500243,7.41246239,2000.0,1999.6,28.97533833]
[1742699500829,2.41246239,2000.0,1999.6,33.97626833]
[1742699501034,0.8263,2000.0,1999.7,2.53933833]
[1742699501257,0.8263,2000.0,1999.6,28.97533833]
[1742699501564,5.00025,1999.9,1999.6,28.97533833]
[1742699505964,5.00025,1999.9,1999.7,2.53933833]
[1742699507163,5.0005,1999.8,1999.7,2.53933833]
[1742699507365,5.00025,1999.9,1999.7,2.53933833]
[1742699509061,0.8263,2000.0,1999.7,2.53933833]
[1742699509455,5.8263,2000.0,1999.7,2.53933833]
[1742699514439,5.8263,2000.0,1999.6,33.97617833]
[1742699515068,5.8263,2000.0,1999.7,26.437]
[1742699515257,7.41248339,2000.0,1999.7,26.437]
[1742699519974,12.41269339,2000.0,1999.7,26.437]
[1742699520777,5.00029,1999.9,1999.7,26.437]
[1742699520976,5.0005,1999.8,1999.7,26.437]
[1742699521272,5.7877,1999.8,1999.7,26.437]
[1742699526682,9.40583733,1999.8,1999.7,26.437]
[1742699529489,5.00112,1999.6,1999.4,26.437]
[1742699530880,5.00125,1999.5,1999.4,26.437]
[1742699531188,5.00112,1999.6,1999.4,26.437]
[1742699531189,5.81312,1999.6,1999.4,26.437]
[1742699531481,0.812,1999.8,1999.5,2.53933833]
[1742699531653,5.81259,1999.8,1999.6,2.53933833]
[1742699531854,5.00059,1999.8,1999.6,2.53933833]
[1742699532880,5.00044,1999.9,1999.6,2.53933833]
[1742699533050,5.0005,1999.8,1999.6,2.53933833]
[1742699533252,5.81215,2000.0,1999.7,2.53933833]
[1742699533452,4.99991,2000.1,1999.8,2.53933833]
[1742699533664,4.99991,2000.1,1999.7,2.53933833]
[1742699533665,5.0001,2000.0,1999.7,2.53933833]
[1742699533882,5.00034,1999.9,1999.6,2.53933833]
[1742699534381,5.00034,1999.9,1999.7,26.438]
[1742699535053,5.0001,2000.0,1999.7,28.97733833]
[1742699537990,4.99975,2000.1,1999.9,2.53933833]
[1742699538294,0.8106,2000.4,2000.0,2.53933833]
[1742699538584,5.80972,2000.4,2000.1,2.53933833]
[1742699538777,4.99912,2000.4,2000.1,2.53933833]
[1742699538973,9.99835,2000.4,2000.1,2.53933833]
[1742699539178,4.99911,2000.4,2000.1,2.53933833]
[1742699539483,9.99834,2000.4,2000.1,2.53933833]
[1742699539876,4.99925,2000.3,2000.1,2.53933833]
[1742699540279,4.99925,2000.3,2000.0,2.53933833]
[1742699541187,4.99925,2000.3,2000.1,2.53933833]
[1742699541388,4.99919,2000.4,2000.1,2.53933833]
[1742699541691,4.99863,2000.6,2000.3,2.53933833]
[1742699541869,4.99836,2000.7,2000.5,2.53933833]
[1742699542070,5.80871,2000.8,2000.5,2.53933833]
[1742699542387,4.99779,2000.9,2000.6,2.53933833]
[1742699542591,4.99811,2000.8,2000.6,2.53933833]
[1742699542890,4.99779,2000.9,2000.6,2.53933833]
[1742699543258,4.99779,2000.9,2000.7,2.53933833]
[1742699543665,4.99753,2001.0,2000.8,2.53933833]
[1742699543978,5.808,2001.1,2000.8,2.53933833]
[1742699544177,7.44031071,2001.2,2000.9,2.53933833]
[1742699544362,4.99726,2001.1,2000.8,2.53933833]
[1742699544995,5.8083,2001.0,2000.6,2.53933833]
[1742699545160,4.99785,2000.9,2000.6,2.53933833]
[1742699545758,4.99802,2000.8,2000.5,28.97533833]
[1742699547167,4.99802,2000.8,2000.5,26.436]
[1742699548160,4.99802,2000.8,2000.5,30.66381404]
[1742699548365,9.99615,2000.8,2000.5,26.436]
[1742699549195,4.99802,2000.8,2000.5,26.436]
[1742699551699,10.80605,2001.0,2000.5,31.43472]
[1742699552078,4.99775,2000.9,2000.5,31.43472]
[1742699556502,4.99775,2000.9,2000.5,26.436]
[1742699557189,9.99573,2000.9,2000.5,26.436]
[1742699557397,4.99813,2000.8,2000.5,26.436]
[1742699558172,0.7643,2001.2,2000.6,4.22781404]
[1742699558377,5.76083,2001.4,2000.8,4.99798]
[1742699558580,0.7643,2001.4,2001.0,9.22516404]
[1742699558786,3.0,2001.5,2001.0,9.22516404]
[1742699559111,5.7604,2001.6,2001.0,9.22516404]
[1742699559112,0.7643,2001.6,2001.2,4.22781404]
[1742699559472,5.97805965,2001.9,2001.3,30.65081404]
[1742699559675,0.7643,2001.8,2001.3,35.64745404]
[1742699559899,5.75987,2001.8,2001.3,26.423]
[1742699560515,5.75987,2001.8,2001.3,31.41972]
[1742699562207,4.99535,2001.9,2001.4,4.99647]
[1742699562573,4.99535,2001.9,2001.4,9.22428404]
[1742699562910,4.99535,2001.9,2001.4,4.99647]
[1742699563096,9.99072,2001.9,2001.3,31.41957]
[1742699563300,4.9955,2001.8,2001.3,31.41957]
[1742699563607,9.22316404,2001.9,2001.3,31.41957]
[1742699564172,5.7593,2002.0,2001.5,4.99623]
[1742699564377,10.75445,2002.0,2001.4,4.99648]
[1742699564613,10.75444,2002.0,2001.4,4.9964]
[1742699565110,10.75448,2002.0,2001.4,4.99638]
[1742699565798,10.75447,2002.0,2001.4,4.99638]
[1742699566003,5.7593,2002.0,2001.4,9.99278]
[1742699566318,5.7593,2002.0,2001.5,9.22400404]
[1742699566519,5.7593,2002.0,2001.5,4.99619]
[1742699567027,0.7643,2002.0,2001.6,9.22380404]
[1742699567342,4.99442,2002.3,2001.7,9.22342404]
[1742699567615,4.99455,2002.2,2001.7,9.22342404]
[1742699567794,4.99455,2002.2,2001.7,4.99561]
[1742699568379,4.99442,2002.3,2001.7,4.99561]
[1742699568708,4.99442,2002.3,2001.8,4.99544]
[1742699569507,4.99437,2002.3,2001.8,4.99544]
[1742699570729,9.98875,2002.3,2001.8,4.99544]
[1742699571029,0.7665,2002.1,2001.6,4.99598]
[1742699571931,5.76138,2002.1,2001.6,4.99598]
[1742699572718,5.76138,2002.1,2001.7,26.414]
[1742699573094,10.75636,2002.1,2001.7,26.414]
[1742699574222,5.76138,2002.1,2001.7,26.414]
[1742699574411,10.75637,2002.1,2001.7,26.414]
[1742699575617,5.76138,2002.1,2001.7,26.414]
[1742699575925,4.995,2002.0,2001.7,26.414]
[1742699576588,10.75635,2002.1,2001.7,26.414]
[1742699576788,4.99502,2002.0,2001.7,26.414]
[1742699583862,0.7665,2002.1,2001.7,31.40966]
[1742699584451,5.76129,2002.1,2001.7,31.40966]
[1742699584975,4.99479,2002.1,2001.7,31.40966]
[1742699585349,9.98978,2002.1,2001.7,26.414]
[1742699585974,4.99479,2002.1,2001.7,26.414]
[1742699586342,9.98976,2002.1,2001.7,26.414]
[1742699586866,4.99479,2002.1,2001.7,31.40969]
[1742699588482,4.99479,2002.1,2001.7,26.414]
[1742699588669,4.99512,2002.0,2001.7,26.414]
[1742699593697,9.99036,2002.0,2001.7,26.414]
[1742699593862,4.99541,2001.9,2001.7,26.414]
[1742699594496,4.9955,2001.8,2001.7,26.414]
[1742699595086,4.99541,2001.9,2001.7,26.414]
[1742699595422,7.52931957,2001.9,2001.7,26.414]
[1742699595632,7.52927957,2001.9,2001.7,26.414]
[1742699595781,4.9955,2001.8,2001.7,26.414]
[1742699596789,7.52927957,2001.9,2001.7,26.414]
[1742699596985,12.52473957,2001.9,2001.7,26.414]
[1742699597924,7.52940957,2001.8,2001.7,26.414]
[1742699598130,8.33700957,2001.8,2001.7,26.414]
[1742699598286,4.99579,2001.7,2001.5,26.41]
[1742699599724,7.52990957,2001.6,2001.5,26.41]
[1742699600012,10.87141914,2001.6,2001.5,26.41]
[1742699600215,10.42378248,2001.6,2001.5,26.41]
[1742699601181,7.88987291,2001.6,2001.5,26.41]
[1742699601423,8.33750957,2001.6,2001.5,26.41]
[1742699603081,10.0290116,2001.6,2001.5,26.41]
[1742699607322,9.2214116,2001.6,2001.5,26.41]
[1742699607517,4.996,2001.6,2001.5,26.41]
[1742699609521,4.2254116,2001.8,2001.5,26.41]
[1742699609723,4.99584,2001.7,2001.5,26.41]
[1742699612518,4.99551,2001.8,2001.5,26.41]
[1742699614990,9.99122,2001.8,2001.5,26.41]
[1742699615193,4.99577,2001.7,2001.5,26.41]
[1742699616129,4.99554,2001.8,2001.5,26.41]
[1742699616329,3.7874,2002.0,2001.5,26.41]
[1742699616330,5.0128116,2002.0,2001.5,26.41]
[1742699616526,2.18809695,2002.1,2001.5,26.41]
[1742699616527,9.2214116,2001.6,2001.5,26.41]
[1742699617427,4.99652,2001.4,2001.3,26.413]
[1742699628834,9.2219316,2001.4,2001.3,26.413]
[1742699629023,9.9842316,2001.4,2001.3,26.413]
[1742699632047,4.99744,2001.1,2000.8,26.417]
[1742699632742,9.9843916,2001.4,2000.9,4.9976]
[1742699632923,4.99689,2001.3,2000.9,4.9976]
[1742699633127,9.99386,2001.3,2000.9,4.9976]
[1742699633418,4.99689,2001.3,2000.9,4.9976]
[1742699633750,9.99422,2001.2,2000.8,31.41499]
[1742699633957,4.99701,2001.2,2000.8,26.417]
[1742699634341,4.99701,2001.2,2000.8,31.41498]
[1742699634522,9.99422,2001.2,2000.8,31.41498]
[1742699637753,4.99727,2001.1,2000.8,26.417]
[1742699648339,2.53595026,2001.0,2000.8,26.417]
[1742699648643,7.53370026,2000.9,2000.8,26.417]
[1742699649047,8.34450026,2000.9,2000.8,26.417]
[1742699651248,10.03697198,2000.9,2000.8,26.417]
[1742699664195,13.03697198,2000.9,2000.8,26.417]
[1742699664376,4.99946,2000.3,2000.2,26.423]
[1742699675428,4.99146,2000.3,2000.2,26.423]
[1742699686250,4.99968,2000.2,2000.1,26.43]
[1742699702075,4.99905,2000.4,2000.1,26.43]
[1742699702248,4.99935,2000.3,2000.1,26.43]
[1742699704688,4.9995,2000.2,2000.1,26.43]
[1742699706904,4.99846,2000.7,2000.1,28.96800951]
[1742699707200,4.99846,2000.7,2000.3,2.53800951]
[1742699707814,4.99776,2000.9,2000.6,2.53800951]
[1742699708398,4.99756,2001.0,2000.6,7.53649951]
[1742699708898,4.99756,2001.0,2000.7,2.53800951]
[1742699709299,9.99486,2001.1,2000.7,2.53800951]
[1742699710505,4.99752,2001.0,2000.6,7.91293508]
[1742699711206,4.99752,2001.0,2000.7,2.53800951]
[1742699712275,4.99752,2001.0,2000.6,7.91293508]
[1742699713606,4.99789,2000.9,2000.4,6.00071168]
[1742699713778,4.99813,2000.8,2000.5,0.55]
[1742699714117,9.99588,2000.9,2000.5,0.55]
[1742699714674,4.99789,2000.9,2000.5,0.55]
[1742699715918,9.99586,2000.9,2000.5,0.55]
[1742699716216,9.9958,2000.9,2000.5,0.55]
[1742699716390,4.99789,2000.9,2000.5,0.55]
[1742699716591,4.99789,2000.9,2000.5,0.92622366]
[1742699716909,4.99813,2000.8,2000.5,0.92622366]
[1742699718993,4.99789,2000.9,2000.5,3.46423317]
[1742699719194,4.99789,2000.9,2000.6,2.53800951]
[1742699719727,4.99789,2000.9,2000.7,26.425]
[1742699720627,4.99754,2001.0,2000.7,26.425]
[1742699722400,4.99775,2000.9,2000.7,26.425]
[1742699723702,4.99754,2001.0,2000.7,26.425]
[1742699724341,9.99525,2001.0,2000.7,26.425]
[1742699726132,9.99516,2001.0,2000.7,26.425]
[1742699728227,4.99778,2000.9,2000.7,26.425]
[1742699729232,4.99778,2000.9,2000.8,26.423]
[1742699738952,4.99778,2000.9,2000.7,26.423]
[1742699739741,9.99566,2000.9,2000.7,26.423]
[1742699740141,4.99778,2000.9,2000.7,26.423]
[1742699742248,4.998,2000.8,2000.7,26.423]
[1742699744762,4.99778,2000.9,2000.7,26.423]
[1742699744931,9.99575,2000.9,2000.7,26.423]
[1742699745639,4.998,2000.8,2000.7,26.423]
[1742699755479,4.99785,2000.9,2000.7,26.423]
[1742699756065,9.99571,2000.9,2000.7,26.423]
[1742699757670,4.99785,2000.9,2000.7,26.423]
[1742699757976,9.99572,2000.9,2000.7,26.423]
[1742699762179,4.99785,2000.9,2000.7,26.423]
[1742699769499,4.99785,2000.9,2000.8,26.423]
[1742699770981,4.9975,2001.0,2000.8,26.423]
[1742699771177,8.35218951,2001.2,2000.8,26.423]
[1742699771178,0.817,2001.2,2000.8,28.96100951]
[1742699771610,4.99702,2001.2,2000.8,33.95886951]
[1742699772671,4.99702,2001.2,2000.8,28.96100951]
[1742699775680,4.99702,2001.2,2000.9,2.53800951]
[1742699776107,4.99702,2001.2,2000.8,26.423]
[1742699776108,4.99702,2001.2,2000.8,28.96100951]
[1742699778385,4.99725,2001.1,2000.8,26.423]
[1742699781626,5.79062,2001.2,2000.8,26.423]
[1742699781840,5.79062,2001.2,2000.8,28.96100951]
[1742699782035,4.99702,2001.2,2000.8,28.96100951]
[1742699784918,9.99425,2001.2,2000.8,28.96100951]
[1742699785088,4.99727,2001.1,2000.8,26.423]
[1742699788619,4.99727,2001.1,2000.9,26.42]
[1742699793493,4.99727,2001.1,2001.0,26.42]
[1742699795737,4.99702,2001.2,2001.0,26.42]
[1742699799640,4.99725,2001.1,2001.0,26.42]
[1742699800147,9.99423,2001.2,2001.0,26.42]
[1742699800719,4.99725,2001.1,2001.0,26.42]
[1742699806064,4.99704,2001.2,2001.0,26.42]
[1742699807734,4.99679,2001.3,2001.0,26.42]
[1742699807961,4.99679,2001.3,2001.1,26.42]
[1742699812371,12.53176951,2001.3,2001.1,26.42]
[1742699813039,7.53479951,2001.3,2001.1,26.42]
[1742699813573,4.99679,2001.3,2001.1,26.42]
[1742699818743,7.53479951,2001.3,2001.1,26.42]
[1742699819281,4.99679,2001.3,2001.1,26.42]
[1742699822284,4.99679,2001.3,2001.2,26.419]
[1742699823162,10.78677,2001.4,2001.2,26.419]
[1742699823365,9.99317,2001.4,2001.2,26.419]
[1742699823565,4.9965,2001.4,2001.2,26.419]
[1742699823884,4.99675,2001.3,2001.2,26.419]
[1742699824466,4.99653,2001.4,2001.2,26.419]
[1742699824685,4.99675,2001.3,2001.2,26.419]
[1742699825685,4.99655,2001.4,2001.2,26.419]
[1742699826057,7.53425951,2001.5,2001.2,26.419]
[1742699826058,2.53800951,2001.5,2001.2,26.419]
[1742699826257,4.99627,2001.5,2001.2,26.419]
[1742699826690,8.34267951,2001.6,2001.2,26.419]
[1742699826862,10.80088,2001.6,2001.2,26.419]
[1742699827062,5.80467,2001.6,2001.2,26.419]
[1742699827261,9.99229,2001.6,2001.2,26.419]
[1742699827486,9.99229,2001.6,2001.2,26.79473171]
[1742699827884,4.99612,2001.6,2001.2,26.79473171]
[1742699828290,7.53412951,2001.6,2001.2,26.79473171]
[1742699829110,12.53034951,2001.6,2001.2,26.79473171]
[1742699829264,7.53430951,2001.5,2001.2,26.419]
[1742699830092,2.53800951,2001.4,2001.2,26.419]
[1742699830295,8.30611951,2001.4,2001.2,26.419]
[1742699831196,7.53475951,2001.3,2001.2,26.419]
[1742699832600,8.30625951,2001.3,2001.2,26.419]
[1742699832920,10.13617346,2001.3,2001.2,26.419]
[1742699838799,3.30950951,2001.3,2001.2,26.419]
[1742699839308,8.30625951,2001.3,2001.2,26.419]
[1742699839806,3.30950951,2001.3,2001.2,26.419]
[1742699840196,2.53800951,2001.3,2001.2,26.419]
[1742699840398,2.53800951,2001.4,2001.2,26.419]
[1742699841389,3.30750951,2001.5,2001.2,26.419]
[1742699842191,2.53800951,2001.4,2001.2,26.419]
[1742699842580,2.53800951,2001.5,2001.2,26.419]
[1742699843305,2.53800951,2001.5,2001.2,31.41593]
[1742699843609,2.53800951,2001.5,2001.2,26.419]
[1742699845201,2.53800951,2001.6,2001.2,26.419]
[1742699845515,2.53800951,2001.6,2001.2,31.41597]
[1742699845816,2.53800951,2001.6,2001.3,4.99671]
[1742699847086,2.53800951,2001.6,2001.2,31.41597]
[1742699849214,3.0,2001.7,2001.2,31.41597]
[1742699849414,2.53800951,2001.6,2001.2,31.41597]
[1742699849913,3.0,2001.7,2001.2,31.41597]
[1742699850111,6.30750951,2001.9,2001.4,4.99626]
[1742699850282,2.53800951,2001.8,2001.4,4.99626]
[1742699850481,2.53800951,2001.8,2001.5,4.99621]
[1742699851083,2.53800951,2001.8,2001.4,0.55]
[1742699852414,2.53800951,2001.8,2001.4,5.54638]
[1742699852711,2.53800951,2001.8,2001.4,10.54273]
[1742699852918,2.53800951,2001.8,2001.4,5.54635]
[1742699853088,2.53800951,2001.8,2001.4,10.54274]
[1742699853712,2.53800951,2001.9,2001.5,4.99619]
[1742699854687,2.53800951,2001.9,2001.5,5.37472173]
[1742699854884,5.81075,2002.1,2001.5,5.37472173]
[1742699855120,2.53800951,2001.9,2001.5,5.37472173]
[1742699855691,2.53800951,2001.9,2001.6,4.99597]
[1742699858530,2.53800951,2002.0,2001.6,4.99597]
[1742699859712,2.53800951,2002.1,2001.8,4.9954]
[1742699860109,2.53800951,2002.2,2001.8,4.9954]
[1742699860298,5.81036,2002.3,2001.8,4.9954]
[1742699860503,2.53800951,2002.1,2001.8,4.9954]
[1742699861625,2.53800951,2002.2,2001.8,4.9954]
[1742699861843,2.53800951,2002.1,2001.8,4.9954]
[1742699862457,2.53800951,2002.1,2001.9,26.411]
[1742699868320,2.53800951,2002.0,2001.9,26.411]
[1742699870150,7.53300951,2002.0,2001.9,26.411]
[1742699870528,8.33090951,2002.0,2001.9,26.411]
[1742699877528,9.91728541,2002.0,2001.9,26.411]
[1742699879642,8.33090951,2002.0,2001.9,26.411]
[1742699881230,11.33090951,2002.0,2001.9,26.411]
[1742699881427,5.82422,2001.8,2001.7,26.408]
[1742699881661,5.8244,2001.7,2001.6,26.408]
[1742699881878,10.82188,2001.4,2001.3,26.408]
[1742699882048,13.35988951,2001.4,2001.3,26.408]
[1742699883233,15.04862005,2001.4,2001.3,26.408]
[1742699883429,10.05194005,2001.4,2001.3,26.408]
[1742699884766,9.22334005,2001.4,2001.3,26.408]
[1742699895271,11.12234733,2001.4,2001.3,26.408]
[1742699897178,10.03354005,2001.4,2001.3,26.408]
[1742699897543,4.9969,2001.3,2001.1,26.415]
[1742699897744,9.22364005,2001.3,2001.1,26.415]
[1742699900987,4.997,2001.2,2001.1,26.415]
[1742699903007,9.22364005,2001.3,2001.1,26.415]
[1742699903908,14.22049005,2001.3,2001.1,26.415]
[1742699904110,9.22361005,2001.3,2001.1,26.415]
[1742699904408,4.22674005,2001.3,2001.1,26.415]
[1742699905403,9.22354005,2001.3,2001.1,26.415]
[1742699910309,4.22674005,2001.3,2001.1,26.415]
[1742699911112,2.5355702,2001.3,2001.1,26.415]
[1742699912017,2.5355702,2001.3,2001.2,26.416]
[1742699912823,4.99626,2001.5,2001.2,26.416]
[1742699912824,2.5355702,2001.5,2001.2,31.41278]
[1742699912986,5.76781,2001.8,2001.3,4.99664]
[1742699913300,9.21976135,2001.8,2001.4,4.99643]
[1742699913482,4.22425135,2001.8,2001.4,9.99274]
[1742699913679,9.21950135,2001.9,2001.5,4.99615]
[1742699914090,4.22425135,2001.8,2001.5,4.99615]
[1742699917013,9.21950135,2001.9,2001.5,4.99615]
[1742699917908,9.21950135,2001.9,2001.5,9.99219]
[1742699918080,9.21950135,2001.9,2001.5,4.99604]
[1742699921608,4.22425135,2002.0,2001.5,4.99604]
[1742699922616,9.21938135,2002.0,2001.6,4.99599]
[1742699923511,9.21993135,2001.8,2001.5,0.55]
[1742699925213,4.99589,2001.7,2001.3,4.99659]
[1742699925415,4.22425135,2001.6,2001.2,26.416]
[1742699925624,1.84960731,2002.3,2001.4,4.22425135]
[1742699925824,1.500992,2002.8,2002.2,9.21869135]
[1742699925984,4.22425135,2002.7,2002.3,26.961]
[1742699926188,4.22425135,2002.7,2002.3,26.411]
[1742699926490,9.21764135,2002.7,2002.3,26.411]